fUSD/lending_fUSD_20240125
["ID","MTS","AMOUNT","RATE_DAILY","PERIOD"]
[312718360,1706188838260,-500.0,0.00050136,31]
[312718361,1706188838287,-551.45,0.00050136,31]
[312718362,1706188838313,-500.0,0.00050136,31]
[312718363,1706188838340,-500.0,0.00050136,31]
[312718364,1706188838367,-500.0,0.00050136,31]
[312718365,1706188838394,-500.0,0.00050136,31]
[312718366,1706188838424,-1626.34,0.00050136,31]
[312718367,1706188838456,-500.0,0.00050136,31]
[312718368,1706188838482,-500.0,0.00050136,31]
[312718369,1706188838508,-500.0,0.00050136,31]
[312718370,1706188838534,-2576.58,0.00050136,31]
[312718371,1706188838561,-500.0,0.00050136,31]
[312718372,1706188838590,-500.0,0.00050136,31]
[312718373,1706188838617,-500.0,0.00050136,31]
[312718374,1706188838643,-500.0,0.00050136,31]
[312718375,1706188838669,-500.0,0.00050136,31]
[312718376,1706188838696,-500.0,0.00050136,31]
[312718377,1706188838727,-500.0,0.00050136,31]
[312718378,1706188838754,-500.0,0.00050136,31]
[312718379,1706188838781,-581.87191659,0.00050136,31]
[312718380,1706188838808,-500.0,0.00050136,31]
[312718381,1706188838835,-500.0,0.00050136,31]
[312718382,1706188838863,-500.0,0.00050136,31]
[312718383,1706188838895,-500.0,0.00050136,31]
[312718384,1706188838923,-500.0,0.00050136,31]
[312718385,1706188838952,-500.0,0.00050136,31]
[312718386,1706188838979,-687.4,0.00050136,31]
[312718387,1706188839005,-500.0,0.00050136,31]
[312718388,1706188839033,-500.0,0.00050136,31]
[312718389,1706188839061,-587.94225692,0.00050136,31]
[312718390,1706188839243,-500.0,0.00050136,31]
[312718391,1706188839273,-500.0,0.00050136,31]
[312718392,1706188839302,-500.0,0.00050136,31]
[312718393,1706188839329,-624.67,0.00050136,31]
[312718394,1706188839359,-500.0,0.00050136,31]
[312718395,1706188839388,-377.21035516,0.00050136,31]
[312718396,1706188839415,-500.0,0.00050136,31]
[312718397,1706188839445,-500.0,0.00050136,31]
[312718398,1706188839475,-500.0,0.00050136,31]
[312718399,1706188839502,-500.0,0.00050136,31]
[312718400,1706188839528,-407.45518831,0.00050136,31]
[312718401,1706188839555,-500.0,0.00050136,31]
[312718402,1706188839581,-500.0,0.00050136,31]
[312718403,1706188839608,-500.0,0.00050136,31]
[312718404,1706188839635,-500.0,0.00050136,31]
[312718405,1706188839662,-414.33,0.00050136,31]
[312718406,1706188839689,-511.86594255,0.00050136,31]
[312718407,1706188839716,-500.0,0.00050136,31]
[312718408,1706188839742,-500.0,0.00050136,31]
[312718409,1706188839769,-500.0,0.00050136,31]
[312718410,1706188839795,-555.34286598,0.00050136,31]
[312718411,1706188839825,-500.0,0.00050136,31]
[312718412,1706188839855,-500.0,0.00050136,31]
[312718413,1706188839883,-543.47,0.00050136,31]
[312718414,1706188839909,-158.4578445,0.00050136,31]
[312718415,1706188839936,-500.0,0.00050136,31]
[312718416,1706188839965,-500.0,0.00050136,31]
[312718417,1706188839991,-500.0,0.00050136,31]
[312718418,1706188840019,-511.97,0.00050136,31]
[312718419,1706188840049,-500.0,0.00050136,31]
[312718420,1706188840078,-478.8510252,0.00050136,31]
[312718421,1706188840107,-500.0,0.00050136,31]
[312718422,1706188840134,-500.0,0.00050136,31]
[312718423,1706188840161,-500.0,0.00050136,31]
[312718424,1706188840188,-500.0,0.00050136,31]
[312718425,1706188840216,-500.0,0.00050136,31]
[312718426,1706188840243,-500.0,0.00050136,31]
[312718427,1706188840270,-500.0,0.00050136,31]
[312718428,1706188840297,-500.0,0.00050136,31]
[312718429,1706188840324,-500.0,0.00050136,31]
[312718430,1706188840351,-500.0,0.00050136,31]
[312718431,1706188840378,-453.81740295,0.00050136,31]
[312718432,1706188840404,-500.0,0.00050136,31]
[312718433,1706188840432,-500.0,0.00050136,31]
[312718434,1706188840461,-500.0,0.00050136,31]
[312718435,1706188840487,-500.0,0.00050136,31]
[312718436,1706188840514,-500.0,0.00050136,31]
[312718437,1706188840541,-500.0,0.00050136,31]
[312718438,1706188840568,-500.0,0.00050136,31]
[312718439,1706188840597,-520.94,0.00050136,31]
[312718440,1706188840624,-674.26,0.00050136,31]
[312718441,1706188840651,-500.0,0.00050136,31]
[312718442,1706188840679,-500.0,0.00050136,31]
[312718443,1706188840706,-507.58,0.00050136,31]
[312718444,1706188840733,-500.0,0.00050136,31]
[312718445,1706188840763,-500.0,0.00050136,31]
[312718446,1706188840791,-152.15484772,0.00050136,31]
[312718447,1706188840819,-500.0,0.00050136,31]
[312718448,1706188840848,-500.0,0.00050136,31]
[312718449,1706188840874,-569.49504728,0.00050136,31]
[312718450,1706188840902,-184.11246084,0.00050136,31]
[312718451,1706188840932,-500.0,0.00050136,31]
[312718452,1706188840960,-500.0,0.00050136,31]
[312718453,1706188840989,-500.0,0.00050136,31]
[312718454,1706188841019,-500.0,0.00050136,31]
[312718455,1706188841048,-500.0,0.00050136,31]
[312718456,1706188841076,-500.0,0.00050136,31]
[312718457,1706188841104,-500.0,0.00050136,31]
[312718458,1706188841133,-553.11940571,0.00050136,31]
[312718459,1706188841160,-500.0,0.00050136,31]
[312718460,1706188841187,-500.0,0.00050136,31]
[312718461,1706188841214,-500.0,0.00050136,31]
[312718462,1706188841242,-500.0,0.00050136,31]
[312718463,1706188841271,-500.0,0.00050136,31]
[312718464,1706188841298,-500.0,0.00050136,31]
[312718465,1706188841326,-500.0,0.00050136,31]
[312718466,1706188841353,-500.0,0.00050136,31]
[312718467,1706188841381,-500.0,0.00050136,31]
[312718468,1706188841408,-500.0,0.00050136,31]
[312718469,1706188841436,-500.0,0.00050136,31]
[312718470,1706188841463,-500.0,0.00050136,31]
[312718471,1706188841490,-500.0,0.00050136,31]
[312718472,1706188841518,-500.0,0.00050136,31]
[312718473,1706188841545,-500.0,0.00050136,31]
[312718474,1706188841572,-500.0,0.00050136,31]
[312718475,1706188841598,-500.0,0.00050136,31]
[312718476,1706188841626,-500.0,0.00050136,31]
[312718477,1706188841654,-622.82,0.00050136,31]
[312718478,1706188841681,-848.34,0.00050136,31]
[312718479,1706188841709,-500.0,0.00050136,31]
[312718480,1706188841881,-500.0,0.00050136,31]
[312718481,1706188841911,-500.0,0.00050136,31]
[312718482,1706188841937,-500.0,0.00050136,31]
[312718483,1706188841964,-500.0,0.00050136,31]
[312718484,1706188841992,-500.0,0.00050136,31]
[312718485,1706188842019,-692.14,0.00050136,31]
[312718486,1706188842047,-500.0,0.00050136,31]
[312718487,1706188842076,-500.0,0.00050136,31]
[312718488,1706188842105,-500.0,0.00050136,31]
[312718489,1706188842132,-500.0,0.00050136,31]
[312718490,1706188842159,-723.91,0.00050136,31]
[312718491,1706188842186,-531.51,0.00050136,31]
[312718492,1706188842214,-500.0,0.00050136,31]
[312718493,1706188842241,-500.0,0.00050136,31]
[312718494,1706188842269,-500.0,0.00050136,31]
[312718495,1706188842296,-500.0,0.00050136,31]
[312718496,1706188842323,-500.0,0.00050136,31]
[312718497,1706188842354,-500.0,0.00050136,31]
[312718498,1706188842381,-500.0,0.00050136,31]
[312718499,1706188842408,-500.0,0.00050136,31]
[312718500,1706188842437,-500.0,0.00050136,31]
[312718501,1706188842466,-500.0,0.00050136,31]
[312718502,1706188842494,-500.0,0.00050136,31]
[312718503,1706188842523,-500.0,0.00050136,31]
[312718504,1706188842549,-500.0,0.00050136,31]
[312718505,1706188842578,-500.0,0.00050136,31]
[312718506,1706188842607,-500.0,0.00050136,31]
[312718507,1706188842635,-500.0,0.00050136,31]
[312718508,1706188842663,-500.0,0.00050136,31]
[312718509,1706188842691,-500.0,0.00050136,31]
[312718510,1706188842719,-518.42,0.00050136,31]
[312718511,1706188842747,-500.0,0.00050136,31]
[312718512,1706188842774,-556.54,0.00050136,31]
[312718513,1706188842802,-500.0,0.00050136,31]
[312718514,1706188842829,-500.0,0.00050136,31]
[312718515,1706188842856,-500.0,0.00050136,31]
[312718516,1706188842883,-500.0,0.00050136,31]
[312718517,1706188842910,-250.0,0.00050136,31]
[312718518,1706188842938,-500.0,0.00050136,31]
[312718519,1706188842966,-500.0,0.00050136,31]
[312718520,1706188842993,-568.52,0.00050136,31]
[312718521,1706188843021,-653.44,0.00050136,31]
[312718522,1706188843050,-500.0,0.00050136,31]
[312718523,1706188843080,-500.0,0.00050136,31]
[312718524,1706188843109,-500.0,0.00050136,31]
[312718525,1706188843137,-500.0,0.00050136,31]
[312718526,1706188843165,-197.39531627,0.00050136,31]
[312718527,1706188843194,-500.0,0.00050136,31]
[312718528,1706188843222,-500.0,0.00050136,31]
[312718529,1706188843252,-500.0,0.00050136,31]
[312718530,1706188843281,-500.0,0.00050136,31]
[312718531,1706188843311,-500.0,0.00050136,31]
[312718532,1706188843340,-500.0,0.00050136,31]
[312718533,1706188843369,-628.96,0.00050136,31]
[312718534,1706188843398,-500.0,0.00050136,31]
[312718535,1706188843426,-523.72,0.00050136,31]
[312718536,1706188843461,-500.0,0.00050136,31]
[312718537,1706188843490,-500.0,0.00050136,31]
[312718538,1706188843519,-899.54,0.00050136,31]
[312718539,1706188843553,-500.0,0.00050136,31]
[312718540,1706188843584,-500.0,0.00050136,31]
[312718541,1706188843617,-500.0,0.00050136,31]
[312718542,1706188843646,-500.0,0.00050136,31]
[312718543,1706188843677,-500.0,0.00050136,31]
[312718544,1706188843705,-254.69506739,0.00050136,31]
[312718545,1706188843732,-500.0,0.00050136,31]
[312718546,1706188843761,-500.0,0.00050136,31]
[312718547,1706188843788,-500.0,0.00050136,31]
[312718548,1706188843818,-500.0,0.00050136,31]
[312718549,1706188843845,-500.0,0.00050136,31]
[312718550,1706188843873,-500.0,0.00050136,31]
[312718551,1706188843900,-500.0,0.00050136,31]
[312718552,1706188843928,-500.0,0.00050136,31]
[312718553,1706188843956,-500.0,0.00050136,31]
[312718554,1706188843983,-528.11,0.00050136,31]
[312718555,1706188844011,-500.0,0.00050136,31]
[312718556,1706188844039,-500.0,0.00050136,31]
[312718557,1706188844072,-500.0,0.00050136,31]
[312718558,1706188844099,-1037.12,0.00050136,31]
[312718559,1706188844126,-500.0,0.00050136,31]
[312718560,1706188844153,-500.0,0.00050136,31]
[312718561,1706188844180,-500.0,0.00050136,31]
[312718562,1706188844207,-500.0,0.00050136,30]
[312718563,1706188844235,-500.0,0.00050136,31]
[312718564,1706188844262,-500.0,0.00050136,31]
[312718565,1706188844289,-500.0,0.00050136,31]
[312718566,1706188844322,-500.0,0.00050136,31]
[312718567,1706188844351,-500.0,0.00050136,31]
[312718568,1706188844523,-500.0,0.00050136,31]
[312718569,1706188844550,-500.0,0.00050136,31]
[312718570,1706188844578,-500.0,0.00050136,31]
[312718571,1706188844604,-500.0,0.00050136,31]
[312718572,1706188844631,-500.0,0.00050136,31]
[312718573,1706188844658,-500.0,0.00050136,31]
[312718574,1706188844686,-500.0,0.00050136,31]
[312718575,1706188844713,-500.0,0.00050136,31]
[312718576,1706188844740,-500.0,0.00050136,31]
[312718577,1706188844766,-500.0,0.00050136,31]
[312718578,1706188844793,-500.0,0.00050136,31]
[312718579,1706188844820,-500.0,0.00050136,31]
[312718580,1706188844848,-500.0,0.00050136,31]
[312718581,1706188844876,-500.0,0.00050136,31]
[312718582,1706188844904,-500.0,0.00050136,31]
[312718583,1706188844931,-500.0,0.00050136,31]
[312718584,1706188844959,-500.0,0.00050136,31]
[312718585,1706188844987,-500.0,0.00050136,31]
[312718586,1706188845014,-597.05686248,0.00050136,31]
[312718587,1706188845042,-500.0,0.00050136,31]
[312718588,1706188845072,-500.0,0.00050136,31]
[312718589,1706188845100,-500.0,0.00050136,31]
[312718590,1706188845128,-500.0,0.00050136,31]
[312718591,1706188845155,-500.0,0.00050136,31]
[312718592,1706188845184,-500.0,0.00050136,31]
[312718593,1706188845214,-500.0,0.00050136,31]
[312718594,1706188845242,-500.0,0.00050136,31]
[312718595,1706188845270,-533.46,0.00050136,31]
[312718596,1706188845298,-501.9,0.00050136,31]
[312718597,1706188845325,-1106.47,0.00050136,31]
[312718598,1706188845352,-500.0,0.00050136,31]
[312718599,1706188845378,-500.0,0.00050136,31]
[312718600,1706188845406,-500.0,0.00050136,31]
[312718601,1706188845437,-500.0,0.00050136,31]
[312718602,1706188845466,-500.0,0.00050136,31]
[312718603,1706188845494,-500.0,0.00050136,31]
[312718604,1706188845522,-500.0,0.00050136,31]
[312718605,1706188845551,-500.0,0.00050136,31]
[312718606,1706188845581,-3932.94,0.00050136,30]
[312718607,1706188845610,-500.0,0.00050136,31]
[312718608,1706188845638,-500.0,0.00050136,31]
[312718609,1706188845665,-553.31,0.00050136,31]
[312718610,1706188845693,-500.0,0.00050136,31]
[312718611,1706188845721,-500.0,0.00050136,31]
[312718612,1706188845749,-500.0,0.00050136,31]
[312718613,1706188845776,-1880.79,0.00050136,31]
[312718614,1706188845804,-582.46,0.00050136,31]
[312718615,1706188845832,-500.0,0.00050136,31]
[312718616,1706188845859,-500.0,0.00050136,31]
[312718617,1706188845886,-500.0,0.00050136,31]
[312718618,1706188845914,-500.0,0.00050136,31]
[312718619,1706188845941,-500.0,0.00050136,31]
[312718620,1706188845966,-3956.45,0.00050136,31]
[312718621,1706188845993,-500.0,0.00050136,31]
[312718622,1706188846020,-500.0,0.00050136,31]
[312718623,1706188846048,-500.0,0.00050136,31]
[312718624,1706188846077,-500.0,0.00050136,31]
[312718625,1706188846106,-500.0,0.00050136,31]
[312718626,1706188846135,-500.0,0.00050136,31]
[312718627,1706188846162,-500.0,0.00050136,31]
[312718628,1706188846190,-500.0,0.00050136,31]
[312718629,1706188846217,-500.0,0.00050136,31]
[312718630,1706188846245,-500.0,0.00050136,31]
[312718631,1706188846272,-500.0,0.00050136,31]
[312718632,1706188846300,-386.59705216,0.00050136,31]
[312718633,1706188846327,-500.0,0.00050136,31]
[312718634,1706188846355,-678.41,0.00050136,31]
[312718635,1706188846382,-500.0,0.00050136,31]
[312718636,1706188846410,-500.0,0.00050136,31]
[312718637,1706188846439,-500.0,0.00050136,31]
[312718638,1706188846467,-500.0,0.00050136,31]
[312718639,1706188846498,-1000.0,0.00050136,30]
[312718640,1706188846531,-500.0,0.00050136,31]
[312718641,1706188846568,-500.0,0.00050136,31]
[312718642,1706188846602,-500.0,0.00050136,31]
[312718643,1706188846634,-500.0,0.00050136,31]
[312718644,1706188846665,-500.0,0.00050136,31]
[312718645,1706188846695,-549.93,0.00050136,31]
[312718646,1706188846723,-500.0,0.00050136,31]
[312718647,1706188846751,-500.0,0.00050136,31]
[312718648,1706188846778,-500.0,0.00050136,31]
[312718649,1706188846807,-679.41,0.00050136,31]
[312718650,1706188846839,-508.28,0.00050136,31]
[312718651,1706188846872,-500.0,0.00050136,31]
[312718652,1706188847055,-509.93,0.00050136,31]
[312718653,1706188847093,-500.0,0.00050136,31]
[312718654,1706188847126,-1829.46,0.00050136,31]
[312718655,1706188847159,-500.0,0.00050136,31]
[312718656,1706188847190,-500.0,0.00050136,31]
[312718657,1706188847221,-500.0,0.00050136,31]
[312718658,1706188847253,-531.3,0.00050136,31]
[312718659,1706188847283,-192.2,0.00050136,31]
[312718660,1706188847317,-500.0,0.00050136,31]
[312718661,1706188847345,-500.0,0.00050136,31]
[312718662,1706188847373,-500.0,0.00050136,31]
[312718663,1706188847402,-500.0,0.00050136,31]
[312718664,1706188847430,-1383.36,0.00050136,31]
[312718665,1706188847460,-500.0,0.00050136,31]
[312718666,1706188847489,-500.0,0.00050136,31]
[312718667,1706188847518,-500.0,0.00050136,31]
[312718668,1706188847551,-1090.07,0.00050136,31]
[312718669,1706188847579,-1155.38,0.00050136,31]
[312718670,1706188847606,-500.0,0.00050136,31]
[312718671,1706188847635,-521.96,0.00050136,31]
[312718672,1706188847664,-684.55,0.00050136,31]
[312718673,1706188847692,-500.0,0.00050136,31]
[312718674,1706188847721,-500.0,0.00050136,31]
[312718675,1706188847750,-500.0,0.00050136,31]
[312718676,1706188847778,-500.0,0.00050136,31]
[312718677,1706188847807,-500.0,0.00050136,31]
[312718678,1706188847835,-500.0,0.00050136,31]
[312718679,1706188847863,-500.0,0.00050136,31]
[312718680,1706188847891,-500.0,0.00050136,31]
[312718681,1706188847919,-557.35,0.00050136,31]
[312718682,1706188847946,-500.0,0.00050136,31]
[312718683,1706188847975,-936.58,0.00050136,31]
[312718684,1706188848002,-500.0,0.00050136,31]
[312718685,1706188848030,-1018.72,0.00050136,31]
[312718686,1706188848060,-500.0,0.00050136,31]
[312718687,1706188848088,-500.0,0.00050136,31]
[312718688,1706188848116,-558.76,0.00050136,31]
[312718689,1706188848144,-500.0,0.00050136,31]
[312718690,1706188848173,-500.0,0.00050136,31]
[312718691,1706188848202,-753.41,0.00050136,31]
[312718692,1706188848232,-500.0,0.00050136,31]
[312718693,1706188848262,-500.0,0.00050136,31]
[312718694,1706188848291,-831.65,0.00050136,31]
[312718695,1706188848321,-500.0,0.00050136,31]
[312718696,1706188848350,-6140.75,0.00050136,31]
[312718697,1706188848378,-500.0,0.00050136,31]
[312718698,1706188848406,-761.84,0.00050136,31]
[312718699,1706188848434,-675.65,0.00050136,31]
[312718700,1706188848465,-500.0,0.00050136,31]
[312718701,1706188848492,-500.0,0.00050136,31]
[312718702,1706188848520,-711.97,0.00050136,31]
[312718703,1706188848548,-507.48,0.00050136,31]
[312718704,1706188848574,-500.0,0.00050136,31]
[312718705,1706188848602,-500.0,0.00050136,31]
[312718706,1706188848629,-500.0,0.00050136,31]
[312718707,1706188848657,-500.0,0.00050136,31]
[312718708,1706188848685,-704.71,0.00050136,31]
[312718709,1706188848713,-500.0,0.00050136,31]
[312718710,1706188848741,-717.59,0.00050136,31]
[312718711,1706188848769,-500.0,0.00050136,31]
[312718712,1706188848798,-500.0,0.00050136,31]
[312718713,1706188848828,-1413.36,0.00050136,31]
[312718714,1706188848855,-1123.79,0.00050136,31]
[312718715,1706188848883,-500.0,0.00050136,31]
[312718716,1706188848911,-500.0,0.00050136,31]
[312718717,1706188848938,-590.10305987,0.00050136,31]
[312718718,1706188848965,-500.0,0.00050136,31]
[312718719,1706188848993,-789.32,0.00050136,31]
[312718720,1706188849022,-500.0,0.00050136,31]
[312718721,1706188849051,-2527.99,0.00050136,31]
[312718722,1706188849080,-500.0,0.00050136,31]
[312718723,1706188849109,-3360.31,0.00050136,31]
[312718724,1706188849136,-500.0,0.00050136,31]
[312718725,1706188849163,-2252.57,0.00050136,31]
[312718726,1706188849190,-302.5902193,0.00050136,31]
[312718727,1706188849217,-500.0,0.00050136,31]
[312718728,1706188849245,-500.0,0.00050136,31]
[312718729,1706188849273,-4785.39,0.00050136,31]
[312718730,1706188849300,-757.11,0.00050136,31]
[312718731,1706188849327,-681.67,0.00050136,31]
[312718732,1706188849354,-500.0,0.00050136,31]
[312718733,1706188849381,-500.0,0.00050136,31]
[312718734,1706188849603,-500.0,0.00050136,31]
[312718735,1706188849633,-1195.74,0.00050136,31]
[312718736,1706188849661,-578.13,0.00050136,31]
[312718737,1706188849688,-500.0,0.00050136,31]
[312718738,1706188849715,-500.0,0.00050136,31]
[312718739,1706188849742,-646.08,0.00050136,31]
[312718740,1706188849770,-500.0,0.00050136,31]
[312718741,1706188849798,-500.0,0.00050136,31]
[312718742,1706188849826,-540.76540827,0.00050136,31]
[312718743,1706188849853,-500.0,0.00050136,31]
[312718744,1706188849881,-500.0,0.00050136,31]
[312718745,1706188849908,-543.76,0.00050136,31]
[312718746,1706188849936,-668.94,0.00050136,31]
[312718747,1706188849963,-500.0,0.00050136,31]
[312718748,1706188849990,-500.0,0.00050136,31]
[312718749,1706188850018,-500.0,0.00050136,31]
[312718750,1706188850046,-500.0,0.00050136,31]
[312718751,1706188850075,-500.0,0.00050136,31]
[312718752,1706188850104,-500.0,0.00050136,31]
[312718753,1706188850134,-540.48132471,0.00050136,31]
[312718754,1706188850167,-624.44,0.00050136,31]
[312718755,1706188850195,-500.0,0.00050136,31]
[312718756,1706188850224,-500.0,0.00050136,31]
[312718757,1706188850252,-500.0,0.00050136,31]
[312718758,1706188850282,-500.0,0.00050136,31]
[312718759,1706188850310,-500.0,0.00050136,31]
[312718760,1706188850338,-664.74,0.00050136,31]
[312718761,1706188850366,-500.0,0.00050136,31]
[312718762,1706188850394,-268.56756336,0.00050136,31]
[312718763,1706188850421,-500.0,0.00050136,31]
[312718764,1706188850450,-552.93,0.00050136,31]
[312718765,1706188850481,-500.0,0.00050136,31]
[312718766,1706188850510,-500.0,0.00050136,31]
[312718767,1706188850539,-569.49,0.00050136,31]
[312718768,1706188850570,-538.01,0.00050136,31]
[312718769,1706188850597,-651.62,0.00050136,31]
[312718770,1706188850627,-567.83,0.00050136,31]
[312718771,1706188850656,-439.85218147,0.00050136,31]
[312718772,1706188850685,-500.0,0.00050136,31]
[312718773,1706188850713,-3543.8,0.00050136,31]
[312718774,1706188850741,-500.0,0.00050136,31]
[312718775,1706188850768,-500.0,0.00050136,31]
[312718776,1706188850797,-500.0,0.00050136,31]
[312718777,1706188850824,-500.0,0.00050136,31]
[312718778,1706188850854,-500.0,0.00050136,31]
[312718779,1706188850883,-500.0,0.00050136,31]
[312718780,1706188850913,-500.0,0.00050136,31]
[312718781,1706188850941,-594.79,0.00050136,31]
[312718782,1706188850969,-500.0,0.00050136,31]
[312718783,1706188850998,-502.34,0.00050136,31]
[312718784,1706188851026,-611.77,0.00050136,31]
[312718785,1706188851056,-549.63,0.00050136,31]
[312718786,1706188851085,-500.0,0.00050136,31]
[312718787,1706188851114,-513.18,0.00050136,31]
[312718788,1706188851142,-591.91,0.00050136,31]
[312718789,1706188851170,-500.0,0.00050136,31]
[312718790,1706188851199,-500.0,0.00050136,31]
[312718791,1706188851227,-892.35,0.00050136,31]
[312718792,1706188851255,-565.29,0.00050136,31]
[312718793,1706188851285,-500.0,0.00050136,31]
[312718794,1706188851314,-500.0,0.00050136,31]
[312718795,1706188851342,-500.0,0.00050136,31]
[312718796,1706188851372,-500.0,0.00050136,31]
[312718797,1706188851401,-696.05,0.00050136,31]
[312718798,1706188851428,-500.0,0.00050136,31]
[312718799,1706188851457,-503.96,0.00050136,31]
[312718800,1706188851487,-500.0,0.00050136,31]
[312718801,1706188851514,-500.0,0.00050136,31]
[312718802,1706188851542,-500.0,0.00050136,31]
[312718803,1706188851572,-1045.18,0.00050136,31]
[312718804,1706188851600,-500.0,0.00050136,31]
[312718805,1706188851627,-500.0,0.00050136,31]
[312718806,1706188851655,-505.83,0.00050136,31]
[312718807,1706188851683,-8322.88,0.00050136,31]
[312718808,1706188851711,-500.0,0.00050136,31]
[312718809,1706188851739,-569.95,0.00050136,31]
[312718810,1706188851766,-616.19,0.00050136,31]
[312718811,1706188851793,-500.0,0.00050136,31]
[312718812,1706188851820,-500.0,0.00050136,31]
[312718813,1706188851995,-1085.14,0.00050136,31]
[312718814,1706188852024,-740.01,0.00050136,31]
[312718815,1706188852053,-500.0,0.00050136,31]
[312718816,1706188852081,-658.74,0.00050136,31]
[312718817,1706188852108,-500.0,0.00050136,31]
[312718818,1706188852136,-728.72,0.00050136,31]
[312718819,1706188852163,-500.0,0.00050136,31]
[312718820,1706188852191,-1773.53,0.00050136,31]
[312718821,1706188852221,-1240.04,0.00050136,31]
[312718822,1706188852249,-599.04,0.00050136,31]
[312718823,1706188852278,-808.35,0.00050136,31]
[312718824,1706188852307,-605.14,0.00050136,31]
[312718825,1706188852337,-500.0,0.00050136,31]
[312718826,1706188852365,-500.0,0.00050136,31]
[312718827,1706188852392,-880.58,0.00050136,31]
[312718828,1706188852420,-500.0,0.00050136,31]
[312718829,1706188852448,-361.42694741,0.00050136,31]
[312718830,1706188852475,-903.12,0.00050136,31]
[312718831,1706188852503,-545.45,0.00050136,31]
[312718832,1706188852533,-500.0,0.00050136,31]
[312718833,1706188852562,-3577.61,0.00050136,31]
[312718834,1706188852590,-500.0,0.00050136,31]
[312718835,1706188852617,-685.58,0.00050136,31]
[312718836,1706188852645,-562.88,0.00050136,31]
[312718837,1706188852673,-952.48,0.00050136,31]
[312718838,1706188852702,-338.55213929,0.00050136,31]
[312718839,1706188852730,-500.0,0.00050136,31]
[312718840,1706188852756,-500.0,0.00050136,31]
[312718841,1706188852783,-500.0,0.00050136,31]
[312718842,1706188852812,-818.92,0.00050136,31]
[312718843,1706188852840,-567.03,0.00050136,31]
[312718844,1706188852868,-500.0,0.00050136,31]
[312718845,1706188852896,-649.85877874,0.00050136,31]
[312718846,1706188852923,-702.34,0.00050136,31]
[312718847,1706188852955,-529.03,0.00050136,31]
[312718848,1706188852983,-500.0,0.00050136,31]
[312718849,1706188853011,-682.14,0.00050136,31]
[312718850,1706188853039,-506.1,0.00050136,31]
[312718851,1706188853069,-919.78,0.00050136,31]
[312718852,1706188853099,-500.0,0.00050136,31]
[312718853,1706188853128,-500.0,0.00050136,31]
[312718854,1706188853157,-1207.59,0.00050136,31]
[312718855,1706188853185,-500.0,0.00050136,31]
[312718856,1706188853214,-500.0,0.00050136,31]
[312718857,1706188853245,-500.0,0.00050136,31]
[312718858,1706188853274,-575.64,0.00050136,31]
[312718859,1706188853305,-500.0,0.00050136,31]